{"text_format":"1","workbook":"xlsx","n_sheets":2,"sheets":["Achats 2023","Listes de choix"],"not_rendered":{"charts":0,"images":1,"macros":1,"external_links":0,"defined_names":3,"comments":1,"pivot_tables":0},"unopened":[],"bounds":{"document_bytes":16777216,"sheet_cells":100000,"rows_first":2000,"rows_last":500,"rows_between":2000,"halvings":0,"cell_chars":16384,"cell_head_chars":4096},"cells_cut":0,"cells_raw":0,"read":"whole","date_system":"1900"}

{"sheet":"Achats 2023","index":0,"n_rows":422,"n_cols":23,"rows_kept":422,"cut":false,"hidden":false,"merged":[[421,0,421,13],[421,16,421,20]]}
["TABLEAU DE SUIVI DES ACHATS 2023"]
[]
["N°","Usine","Qui","Jour","Mois","Date Liv prév","Mode Paiement","Délai Paiement","Échéance","Acompte\nO/N","Fournisseur","Service","Objet principal","Montant HT","Frais Port & Emballage","Montant Total HT","Mois de réception","N° Facture","Date Facture","Montant réel HT","Date paiement"]
["C2315001","Teissières","MV",7,2,null,"Virement","45 jours","FDM","N","Eurofins centre est (St Etienne)","analyses externes","sortie binôme 1",11.44,8.32,{"$f":"N4+O4","v":19.759999999999998},null,"FELD-SD-23-000668","2023-02-28",19.760000000000002,"2023-03-31"]
["C2360001","Marolles","FG",3,1,null,"Virement","45 jours","FDM","N","KILOUTOU","location matériel","Carotteuse diametre 300 mm",477.99,null,{"$f":"N5+O5","v":477.99},"1","F30798257","2023-01-11",439.83,"2023-02-28"]
["C2337001 MAWA","MAWA","FD",3,1,null,"Virement","45 jours","FDM","N","Marceul","prdts maint.","Masque de soudure + Verre loupe",77.150000000000006,null,77.150000000000006,null,"F33629","2023-01-31",77.150000000000006,"2023-02-28"]
["C2315002","Teissières","RB",5,1,null,"Virement","45 jours","FDM","N","GERVAIS","pièces maint.","clé à choc pour réparation OP",539.41999999999996,null,539.41999999999996,null,"F23000848","2023-01-31",539.41999999999996,"2023-03-15"]
["C2360002","Marolles","SD",5,1,null,null,null,null,null,"INTERACTIVE PAPETERIE","fournitures bureau","Divers",141.09,0,141.09,"1","F266212","2023-01-31",141.09,"2023-02-28"]
["C2315003","Teissières","RB",5,1,null,"Virement","45 jours","FDM","N","RS","pièces maint.","pallier x2 / gillets x12 / douilles et clés",247.88,null,247.88,null,"F482178328","2023-01-05",247.88,"2023-02-28"]
["C2360003","Marolles","FG",5,1,null,"Virement","45 jours","FDM","N","ALPHEA","/s traitance maint","remis en place mot de passe ecran bardi",330,null,330,"1","F2301-10790","2023-01-06",330,"2023-02-28"]
["C2360004","Marolles","FG",5,1,null,"Virement","45 jours","FDM","N","RS","pièces maint.","Ampoule spot, taraud, soudure, adhesif sortie ligne + ect",151.08000000000001,null,151.08000000000001,"1","F482178329","2023-01-05",151.08000000000001,"2023-02-28"]
["C2337002 MAWA","MAWA","RC",6,1,null,"Virement","45 jours","FDM","N","Moulé","prdts maint.","Produits projet MAWA",21.49,null,21.49,null,"F23010110","2023-01-31",21.49,"2023-02-28"]
["C2384001","Monteux","RB",10,1,null,"Virement","45 jours","FDM","N","Yoann D","/s traitance maint","2 jeux de mors pour déboucheuse Bardi",520,null,520,null,"F23-00008","2023-02-10",520,"2023-03-31"]
["C2384002","Monteux","GC",10,1,null,"Virement","45 jours","FDM","n","RJ International","pièces maint.","paliers navette",55.9,null,55.9,null,"F7237915","2023-01-15",55.9,"2023-02-28"]
["C2384003","Monteux","GC",10,1,null,"Virement","45 jours","FDM","n","Videojet","pièces maint.","Solvant",444.84,null,444.84,null,"F600304341","2023-01-10",444.84,"2023-02-28"]
["C2337001 ","Saint Hippo","FD",3,1,"2023-01-03","Virement","45 jours","FDM","n","Marceul/ AIR LIQUIDE","pièces maint.","Bbs gaz pour soudure",null,null,0,"01","F958630860","2023-01-31",260.74,"2023-02-28"]
["C2360005","Marolles","FG",10,1,null,"Virement","45 jours","FDM","n","LINDE","consommables de prod","GAZ C02",538.20000000000005,125.6,663.80000000000007,"1","F4231279264","2023-01-31",887.42,"2023-03-15"]
["C2315004","Teissières","RB",10,1,null,"Virement","45 jours","FDM","N","RS","pièces maint.","vanne 1/2 inox et 3/4 + connection wago",83,null,{"$f":"N18+O18","v":83},null,"F482213201","2023-01-10",83,"2023-02-28"]
["C2384004","Monteux","GC",11,1,null,"Virement","45 jours","FDM","N","Simonnot","maint chariots élév","Révision Still",null,null,0,null,"F012309227","2023-01-24",120.5,"2023-03-31"]
["C2384005","Monteux","GC",11,1,null,"Virement","45 jours","FDM","N","RJ International","pièces maint.","roulement navette",25.2,null,25.2,null,"F7237915","2023-01-15",25.2,"2023-02-28"]
["C2360006","Marolles","SD",11,1,null,null,null,null,null,"BIOKAR","PRDTS LABO","Milieux de culture",null,0,0,null,"F10198967/F10199179","12 ET 16/01/2023",342.4,"28/02et31/03/2023"]
["C2337002","Saint Hippo","FD",11,1,"2023-01-01","Virement","45 jours","FDM","N","SEFI","prdts maint.","Accouplement pour reparation convoyeur sortie laveuse",7.84,null,7.84,"01","F213381","2023-01-27",7.84,"2023-02-28"]
["C2337003 MAWA","MAWA","FD",11,1,null,"Virement","45 jours","FDM","N","SEFI","prdts maint.","Palier auto aligneur",112.92,null,112.92,"01","F213382/F237732","27/01 ET 24/02/2023",112.92,"28/02 et 31/03/2023"]
["C2315005","Teissières","LD",11,1,null,"Virement","30 jours","FDM","N","PLEIN CIEL","fournitures bureau","Feuilles A4 Stylo Scotch devidoir",157.86000000000001,null,157.86000000000001,null,"F266211","2023-01-31",157.86000000000001,"2023-02-28"]
["C2337004","Saint Hippo","JC",11,1,"S 5 ou 6 ?","Virement","Réception facture","Autre","N","BDR Industrie","consommables de prod","51 intercalaires en OSB 9 mm pour essais alternative à l'isorel 5 mm",315.29000000000002,null,315.29000000000002,null,"FA00012953","2023-01-31",315.29000000000002,"2023-01-31"]
["C2360007","Marolles","FG",12,1,null,"Virement","45 jours","FDM","N","JUNGHEINRICH","/s traitance maint","Intervention chariot élévateur",265.3,null,265.3,"1","F5586708630","2023-01-17",280.05,"2023-02-28"]
["C2315006","Teissières","MV",null,1,null,"Virement","45 jours","FDM","N","BIOKAR","prdts labo","Milieux de culture",429.09,0,429.09,null,"F10199180","2023-01-16",429.09,"2023-03-31"]
["C2360008","Marolles","FG",16,1,null,"Virement","45 jours","FDM","N","JUNGHEINRICH","/s traitance maint","Reparation chariot efg215 ( flexible HS suite fuite d'acide)",1214.94,null,1214.94,"1","F5586713981","2023-01-24",1214.94,"2023-02-28"]
["C2337004 MAWA","MAWA","FD",16,1,null,"Virement","45 jours","FDM","N","Marceul","prdts maint.","Bombe peinture et diovers consommables",36.97,null,{"$f":"N29+O29","v":36.97},"01","F33629","2023-01-31",39.67,"2023-02-28"]
["C2315007","Teissières","RB",17,1,null,"Virement","45 jours","FDM","N","RS","prdts maint.","régulateurs de débit",124.4,0,124.4,null,"F482250462","2023-01-17",124.4,"2023-02-28"]
["C2337005","Saint Hippo","FD",18,1,null,"Virement","45 jours","FDM","N","Electro tours","consommables de prod","Prises Chariots",49.2,null,49.2,null,"F040535","2023-01-31",49.2,"2023-02-28"]
["C2337006","Saint Hippo","FD",18,1,null,"Virement","45 jours","FDM","N","BWT","Sécurité / Environnement","Etat des lieux boitier UV 1",361,null,{"$f":"N32+O32","v":361}]
["C2360009","Marolles","SD",18,1,null,"Virement","30 jours","FDM","N","PLEIN CIEL","fournitures bureau","PLASTIFIEUSE + MASSICOT",185.22,0,185.22,"1","F266212","2023-01-31",185.22,"2023-02-28"]
["C2360010","Marolles","FG",20,1,null,"Virement","45 jours","FDM","N","RS","pièces maint.","divers + capteur bardi",97.8,null,97.8,"1","F482272165","2023-01-20",97.8,"2023-02-28"]
["C2360011","Marolles","FG",20,1,null,"Virement","45 jours","FDM","N","RS","Sécurité / Environnement","tapis anti fatigue",286.5,null,286.5,"1","F482272166","2023-01-20",286.5,"2023-02-28"]
["C2337005 MAWA","MAWA","FD",16,1,null,"Virement","45 jours","FDM","N","Electro tours","pièces maint.","Divers contacteurs",273.19,null,273.19,"01","F040535","2023-01-31",273.19,"2023-02-28"]
["C2384006","Monteux","RB",23,1,null,"Virement","30 jours","FDM","N","ERICKS","pièces maint.","vannes remplisseuse et kits maintenance/Pièces pour usine de  MAROLLES",2219.3000000000002,80,{"$f":"N37+O37","v":2299.3000000000002},null,"F9270347740","2023-01-25",2299.4,"2023-02-28"]
["C2337007","Saint Hippo","FD",24,1,null,"Virement","45 jours","FDM","N","Moule","pièces maint.","Divers produits interrupteurs, tricoclair,,,",120.9,null,120.9,null,"F23010110","2023-01-31",122.57,"2023-02-28"]
["C2337008","Saint Hippo","RB",25,1,null,"Virement","45 jours","FDM","N","ECOLAB","pièces maint.","cannes d'aspiration et clapets",702,105.3,{"$f":"N39+O39","v":807.3},null,"F6320720537/F6320721881","26/01 ET 31/01/2023",842.4,"2023-02-28"]
["C2337009","Saint Hippo","FD",25,1,null,"Virement","45 jours","FDM","N","Fumetalize","Batiment","SINISTRE Remplacement des skydomes suite à tempète de grêle du 19/06/2022",6969.9,null,{"$f":"N40+O40","v":6969.9},"4","FA00047946","2023-04-18",6969.9,"2023-05-15"]
["C2337010","Saint Hippo","FD",25,1,null,"Virement","45 jours","FDM","N","Fumetalize","Batiment","Deplacement de 2 treuils car mal placés et 1 HS suite à maintenance de 2021 et 2022",811.5,null,811.5,"4","FA00047947","2023-04-18",811.5,"2023-05-15"]
["C2360012","Marolles","FG",25,1,null,"Virement","45 jours","FDM","N","Prolians","Batiment","peinture sol + ect",429.37,null,429.37,"1","FRS3753","2023-01-31",429.37,"2023-02-28"]
["C2360013","Marolles","FG",25,1,null,null,null,null,null,"PILLAUD","Batiment","betonniere, brouette, ciment, sable, ect ,,,",993.45,null,993.45,null,"F1650488","2023-03-07",993.45,"2023-02-28"]
["C2384007","Monteux","LM",26,1,null,"Virement","45 jours","FDM","n","grosseron","matériel labo","solution etalon, boite de pétrie, …",507.18,null,507.18,null,"FV2023651399/FV2023660899","27/01 ET 17/03/2023",507.18,"2023-03-31"]
["C2360014","Marolles","FG",26,1,null,"Virement","45 jours","FDM","n","TRENOIS","prdts maint.","DIVERS",129.56,null,129.56,null,"F1469116","2023-01-31",133.71,"2023-02-28"]
["C2399001","Multi Sources","MV",26,1,null,"Virement","45 jours","FDM","N","France Sécurité","Sécurité / Environnement","Veste Softshelle Himalaya",947.94,4.5,952.44,null,"F3630171","2023-02-25",952.44,"03/05/02023"]
["C2399002","Multi Sources","MV",26,1,null,"Virement","45 jours","FDM","N","France Sécurité","Sécurité / Environnement","Veste Softshelle Himalaya",406.26,4.5,410.76,null,"F2630172","2023-02-25",410.76,"2023-05-03"]
["C2337011","Saint Hippo","JC",27,1,null,"Virement","30 jours","NET","N","Hygéo","/s traitance géné","Etude et dossier de renouvelt autorisation pompage",4905,0,4905]
["C2384008","Monteux","GC",27,1,null,"Virement","30 jours","FDM","N","SAFI","pièces maint.","Joints raccord clamp",15.5,null,15.5,null,"F04224349","2023-01-31",15.5,"2023-02-28"]
["C2337006 MAWA","MAWA","FD",6,1,null,"Virement","45 jours","FDM","N","Spraying system","prdts maint.","Buses projet MAWA",431.04,0,{"$f":"N50+O50","v":431.04},null,"FAC 2301168","2023-03-03",431.04,"2023-02-28"]
["C2360015","Marolles","FG",30,1,null,"Virement","45 jours","FDM","N","TRENOIS","Sécurité / Environnement","Gilet orange + cliquet+ chaussure",284.68,null,284.68,null,"F1469116/F1527966","31/01 ET 28/02/2023/2023",284.68,"28/02et31/03/2023"]
["C2360016","Marolles","FG",30,1,null,"Virement","45 jours","FDM","N","LINDE","consommables de prod","gaz c02",538.20000000000005,125.6,663.80000000000007,null,"F4231531031","2023-02-28",685.1,"2023-04-15"]
["C2315008","Teissières","MV",31,1,null,"Virement","45 jours","FDM","N ","ARMOSA","hygiène générale / personnel","insectocuteur",97.21,27.32,124.53,null,"FAED10SIG23020006","2023-02-02",125.13,"2023-03-31"]
["C2337012","Saint Hippo","CT",1,2,null,"Virement","45 jours","FDM","n","BIOKAR","prdts labo","geloses",335.8,null,335.8,"2","F10200683","2023-02-02",335.8,"2023-03-31"]
["C2384009","Monteux","LM",1,2,null,"virement","45 jours","FDM","n","bres bureautique","fournitures bureau","calendrier, prochette, …",13.23,null,13.23,"1","FCA-024028","2023-01-31",13.23,"2023-02-28"]
["C2384010","Monteux","GC",1,2,null,"Virement","30 jours","FDM","N","TRENOIS","pièces maint.","visserie pour atelier",249.22,null,249.22,null,"F1527966","2023-02-28",249.22,"2023-03-31"]
["C2384011","Monteux","GC",1,2,null,"Virement","30 jours","FDM","N","TRENOIS","pièces maint.","Graisseurs + clips",110.55,null,110.55,null,"F1527966","2023-02-28",110.55,"2023-03-31"]
["C2337007 MAWA","MAWA","FD",2,2,null,"Virement","45 jours","FDM","N","PR INDUSTRIE","pièces maint.","Buses projet MAWA",1174.54,17.190000000000001,1191.73,"3","FAC CFA65478","2023-03-27",1191.73,"2023-02-28"]
["C2337008 MAWA","MAWA","FD",2,2,null,"Virement","45 jours","FDM","N","BMP","pièces maint.","Pompes laveuse projet MAWA",3147.84,null,{"$f":"N59+O59","v":3147.84},"02","F42302056","2023-02-09",3147.84,"2023-04-15"]
["C2337009 MAWA","MAWA","FD",2,2,null,"Virement","45 jours","FDM","N","BMP","pièces maint.","Pompe Forage projet MAWA",1496.64,null,1496.64,null,"F42302042","2023-02-08",1496.64,"2023-04-15"]
["C2384012","Monteux","LM",2,2,null,"Virement","45 jours","FDM","n","BIOKAR","PRDTS LABO","Milieux de culture",371.19,null,371.19,null,"F10200684/F10200976","02 et 06/02/2023",371.19,"2023-03-31"]
["C2337013","Saint Hippo","FD",25,1,null,"Virement","46 jours","FDM","n","BMH","/s traitance maint","Reparation carte afficheur forage",30,null,{"$f":"N62+O62","v":30},"12"]
["C2315009","Teissières","RB",3,2,null,"Virement","45 jours","FDM","N ","RS","pièces maint.","piles de sauvegarde et WD40 et presses etoupes",221.25,null,221.25,null,"F482352089","2023-02-03",221.25,"2023-03-31"]
["C2360017","Marolles","FG",3,2,null,"Virement","45 jours","FDM","N ","TRENOIS","pièces maint.","tuyau aspiration debouchonneuse ",298,null,298,null,"F1527966","2023-02-28",143.43]
["C2360018","Marolles","FG",3,2,null,"Virement","45 jours","FDM","N ","TRENOIS","prdts maint.","Batterie perceuse, furet karcher + foret + chiffons + ect",918.97,null,918.97,null,"F1527966","2023-02-28",693.73,"2023-03-31"]
["C2315010","Teissières","RB",3,2,null,"Virement","45 jours","FDM","N ","Videojet","pièces maint.","Solvant",222.42,null,222.42,"2","F600306496","2023-02-07",222.42,"2023-03-31"]
["C2315011","Teissières","RB",6,2,null,"Virement","45 jours","FDM","N ","Yesss","pièces maint.","tube I / fixations et multiprises",156.13,null,156.13,null,"FAUC-022407","2023-02-28",156.13,"2023-05-03"]
["C2337010 MAWA","MAWA","FD",8,2,null,"Virement","45 jours","FDM","N","EJM","pièces maint.","Joint silicone trappes",893.76,null,893.76,null,"F12083","2023-03-17",918.76]
["C2360019","Marolles","RB",8,2,null,"Virement","45 jours","FDM","N ","ALPHEA","/s traitance maint","sauvegarde du programme laveuse",900,null,{"$f":"N69+O69","v":900},null,"F230 10811","2023-02-14",900,"2023-03-31"]
["C2337014","Saint Hippo","FD",8,2,null,"Virement","45 jours","FDM","n","Electro tours","pièces maint.","Relais miniature et peignes",66.84,null,{"$f":"N70+O70","v":66.84},null,"F041824","2023-02-28",66.84,"2023-03-31"]
["C2337015","Saint Hippo","CT",17,2,null,"Virement","45 jours","FDM","n","Mabeo","hygiène générale / personnel","chaussures de securité : remy, stéphane et catherine",216.37,null,{"$f":"N71+O71","v":216.37},"2","F23057456","2023-02-20",225.32,"2023-05-03"]
["C2384013","Monteux","GC",10,2,null,"Virement","45 jours","FDM","n","RS","pièces maint.","ressorts circlips",83.07,null,{"$f":"N72+O72","v":83.07},"2","F482387482","2023-02-10",83.07,"2023-03-31"]
["C2315012","Teissières","MV",21,2,null,"Virement","45 jours","FDM","N","Eurofins centre est (St Etienne)","analyses externes","As-Sb Entrée Traitement + sortie binôme 1",22.88,16.64,39.519999999999996,null,"FEL-SD-23-000679","2023-02-28",39.520000000000003,"2023-03-31"]
["C2360020","Marolles","SD",14,2,null,null,null,null,null,"INTERACTIVE PAPETERIE","fournitures bureau","divers",126.14,0,126.14,null,"F266897","2023-02-28",126.14,"2023-03-31"]
["C2337011 MAWA","MAWA","FD",14,2,null,"Virement","45 jours","FDM","N","Creat'Inox","pièces maint.","Bride Dn32 pompe desinfection MAWA",349.23,20,369.23,null,"FA23057","2023-02-28",369.23,"2023-05-03"]
["C2337017","Saint Hippo","FD",14,2,null,"Virement","45 jours","FDM","n","Poly-service 37","pièces maint.","Location Grue pour intervention Forage du 7 et 8 /12/2023",1750,null,{"$f":"N76+O76","v":1750},"12"]
["C2360021","Marolles","FG",14,2,null,"Virement","45 jours","FDM","n","RS","pièces maint.","capteur paletiseur + capteur bardi + palier convoyeur + etiquettes",673.85,null,{"$f":"N77+O77","v":673.85},null,"F 482407659","2023-02-14",673.85,"2023-03-31"]
["C2384014","Monteux","GC",16,2,null,"Virement","45 jours","FDM","n","Cogeflu","prdts maint.","Actionneur pour vanne bardi ",1966.83,null,1966.83,null,"FC_017693","2023-02-24",1966.83,"2023-04-15"]
["C2384015","Monteux","GC",20,2,null,"Virement","45 jours","FDM","N","RS","pièces maint.","compteur production",118.8,null,118.8,null,"F482439676","2023-02-20",118.8,"2023-03-31"]
["C2337012 MAWA","MAWA","FD",21,2,null,"Virement","45 jours","FDM","N","Electro tours","pièces maint.","divers composants electriques",164.05,null,164.05,null,"F041824","2023-02-28",164.05,"2023-03-31"]
["C2360022","Marolles","SD",22,2,null,null,null,null,null,"Grosseron","prdts labo","Joint autuclave + membranes",395.12,0,395.12,"3","FV2023660841","2023-03-17",395.12]
["C2315013","Teissières","MV",28,2,null,"Virement","45 jours","FDM","N","Eurofins centre est (St Etienne)","analyses externes","Fer sortie Déferriseur et Mn Sortie Démanganiseur",11.44,16.64,28.08,null,"FEL-SD-23-001061","2023-03-30",28.08,"2023-05-03"]
["C2384016","Monteux","GC",22,2,null,"Virement","45 jours","FDM","n","BMP","pièces maint.","garniture réparation pompe rejets",1351.02,null,1351.02,null,"F42302173","2023-02-28",1351.02,"2023-04-15"]
["C2360023","Marolles","FG",22,2,null,"Virement","45 jours","FDM","n","FANUC","/s traitance maint","Maintenance type B robot Fanuc",2200,null,2200,null,"F40841310","2023-02-23",2200,"2023-05-03"]
["C2360024","Marolles","FG",22,2,null,"Virement","45 jours","FDM","n","RS","consommables de prod","pile pour telecommande + adhesif feuilles sortie de ligne",66.849999999999994,null,66.849999999999994,null,"F482419404","2023-02-22",66.849999999999994,"2023-03-31"]
["C2360025","Marolles","FG",22,2,null,"Virement","45 jours","FDM","n","LINDE","consommables de prod","gaz c02",538.20000000000005,125.6,663.80000000000007,null,"F4231531031","2023-02-28",685.1,"2023-04-15"]
["C2337018","Saint Hippo","JC",22,2,"2023-12-08","Virement","30 jours","FDM","n","Sade forages","/s traitance maint","Passage caméra du forage",2075,null,2075,"12"]
["C2384017","Monteux","GC",23,2,null,"Virement","45 jours","FDM","n","bres bureautique","fournitures bureau","Tableau d'affichage",102.21,null,102.21,null,"FCA-24415","2023-02-28",102.21,"2023-03-31"]
["C2399003","Multi Sources","MV",23,2,null,"Chèque",null,null,null,"Centre National du Droit du travail","Sécurité / Environnement","affichage obligatoire mise à jour",145,6.3,151.30000000000001,null,"FCFT000032111","2023-03-06",151.30000000000001,"2023-02-23"]
["C2337019","Saint Hippo","FD",24,2,null,"Virement","45 jours","FDM","N","Moulé","pièces maint.","Torche pour poste à souder TIG",117,null,117,null,"F23020115","2023-02-28",117,"2023-03-31"]
["C2337020","Saint Hippo","FD",24,2,null,"Virement","45 jours","FDM","N","Moulé","pièces maint.","Filte mano regulateur pour deboucheuse auto",112,null,{"$f":"N91+O91","v":112},null,"F23030175","2023-03-31",112,"2023-05-03"]
["C2315014","Teissières","LD",21,2,null,"Virement","30 jours","FDM","N","PLEIN CIEL","fournitures bureau","BIC TAPIS SOURIS ",363.04,null,363.04,null,"F266896","2023-02-28",281.5,"2023-03-31"]
["C2384018","Monteux","LM",27,2,null,"Virement","30 jours","FDM","n ","Linde","consommables de prod","Gaz co2",null,null,0,null,"F4231532165","2023-02-28",707.84]
["C2399004","Multi Sources","RB",28,2,null,"Virement","45 jours","FDM","n","Bardi","pièces maint.","10 semi pinces 84 et 20 semi pinces 60",4170,190,{"$f":"N94+O94","v":4360},null,"F147","2023-03-06",4360,"2023-04-18"]
["C2360026","Marolles","RB",28,2,null,"Virement","45 jours","FDM","n","ECP Thermique","pièces maint.","résistance 100Kw",1860,225,2085,null,"FACTURE PROFORMA","2023-01-30",2085,"2023-03-15"]
["C2315015","Teissières","MV",7,3,null,"Virement","45 jours","FDM","N","Eurofins centre est (St Etienne)","analyses externes","As-Sb  sortie binôme 1",11.44,8.32,19.759999999999998]
["C2360027","Marolles","FG",28,2,null,"Virement","45 jours","FDM","N","ALPHEA","/s traitance maint","Fourniture d'un automate TSX3722 ( paletiseur)",980,null,980,null,"F2360027","2023-02-28",980,"2023-04-15"]
["C2360028","Marolles","FG",28,2,null,"Virement","45 jours","FDM","N","linde","consommables de prod","Gaz c02",538.20000000000005,125.6,663.80000000000007,"3","F4231826736","2023-03-31",685.1,"2023-05-15"]
["C2360029","Marolles","SD",1,3,null,"Virement","45 jours","FDM","N","Eurofins","analyses externes","REJETS",91.78,null,91.78,null,"FEL-SD-23-001115","2023-03-31",19.760000000000002,"2023-05-03"]
["C2337021","Saint Hippo","CT",1,3,null,"Virement","45 jours","fdm","n","eurofins","analyses externes","rejets",91.78,null,91.78,"3","FELD-SD-23-001518","2023-04-26",91.78]
["C2360030","Marolles","FG",2,3,null,"Virement","45 jours","fdm","n","rs","matériel labo","Thermometre infrarouge",135,null,135,"3","F482499722","2023-03-02",135,"2023-05-03"]
["C2315016","Teissières","RB",2,3,null,"Virement","45 jours","FDM","N","rs","pièces maint.","kit ressorts et raccords pneumatiques, multimètre",330.68,null,{"$f":"N102+O102","v":330.68},null,"F482499723/F482512107","02ET 03/03/2023",330.68,"2023-05-03"]
["C2360031","Marolles","FG",2,3,null,"Virement","45 jours","FDM","N","PROLIANS(AIR LIQUIDE)","prdts maint.","GAZ ARCAL",136.88999999999999,null,136.88999999999999,"3","F958755472","2023-03-31",136.88999999999999]
["C2315017","Teissières","MV",29,3,null,"virement","45 jours","FDM","N","Eurofins","analyses externes","eaux de rejets",53.04,38.74,91.78,null,"FEL-SD-23-001517","2023-04-26",91.78]
["C2360032","Marolles","FG",2,3,null,"virement","45 jours","FDM","N","rs","pièces maint.","reparation axe verin banderoleuse",60.24,null,60.24,"3","F482517786","2023-03-06",60.24,"2023-05-03"]
["C2384019","Monteux","RB",8,3,null,"Virement","30 jours","FDM","n ","Techmadome","pièces maint.","automate S7 et module ext",507,null,{"$f":"N106+O106","v":507},null,"F2304280","2023-04-07",507]
["C2384020","Monteux",null,null,null,null,"Virement","30 jours","FDM","n","Cogeflu","pièces maint.","Actionneur de vanne remplisseuse",1966.83,null,1966.83,null,"FC-017932","2023-03-23",1966.83,"2023-05-15"]
["C2384021","Monteux","JC",8,3,"S 14","virement","45 jours","FDM","N","Grosseron","matériel labo","Pompe à vide bactério, membranes et pipettes",615.91999999999996,0,615.91999999999996,null,"FV2023660899","2023-03-17",279.58]
["C2337013 MAWA","MAWA","FD",8,3,null,"Virement","45 jours","FDM","N","Electro tours","pièces maint.","divers composants electriques",164.05,null,{"$f":"N109+O109","v":164.05}]
["C2315018","Teissières","MV",8,3,null,"Virement","45 jours","FDM","N","Grosseron","prdts labo","Flacons stériles, eau déminéralisée, alcool ….",862.64,0,862.64,null,"FV2023661195","2023-03-17",862.64]
["C2315019","Teissières","MV",14,3,null,"Virement","45 jours","FDM","N","Eurofins centre est (St Etienne)","analyses externes","As-Sb Forage F4+F3",22.88,16.64,39.519999999999996,null,"FEL-SD-23-00113","2023-03-31",39.520000000000003,"2023-05-03"]
["C2360033","Marolles","RB",9,3,null,"virement","45 jours","FDM","N","Videojet","consommables de prod","cartouches encre et solvants",610.15,null,{"$f":"N112+O112","v":610.15},"3","F482517786","2023-03-06",60.24]
["C2337022","Saint Hippo","FD",9,3,"2023-03-14","Virement","45 jours","FDM","n","Mabeo","hygiène générale / personnel","chaussures de securité : Emilie et Patrick",156.71,0,156.71,"3","F23100376","2023-03-20",156.71]
["C2384022","Monteux","GC",9,3,null,"Virement","45 jours","FDM","n","Saffi","pièces maint.","Fer rond inox",null,null,0,null,"F04224967","2023-03-31",3.32]
["C2315020","Teissières","MV",13,3,null,"Virement","45 jours","FDM","N","Biokar","prdts labo","Milieux de culture",376.24,0,376.24,null,"F10203928","2023-03-13",376.24,"2023-05-03"]
["C2337023","Saint Hippo","JC",22,2,"2023-12-08","Virement","30 jours","FDM","n","TSPS","/s traitance maint","Plaques de passage grue Polyservice 37 pour intervention forage du 6 au 8/12/2023",3236,null,{"$f":"N116+O116","v":3236},"12"]
["C2315021","Teissières","RB",10,3,null,"Virement","45 jours","FDM","N","Techmadome","pièces maint.","PC OSS2 pour PL7 program enrackeur",297,25,322,null,"F2304280","2023-04-07",322]
["C2315022","Teissières","RB",13,3,null,"Virement","46 jours","FDM","N","yesss","pièces maint.","50m de câble 5G0,75",49.82,null,{"$f":"N118+O118","v":49.82},null,"FAUC-022682"]
["C2360034","Marolles","RB",14,3,null,"virement","45 jours","FDM","N","ECOLAB","pièces maint.","1 pompe ELADOS + kit de raccordement",2564.75,504.85,3069.6]
["C2360034 B","Marolles","RB",14,3,null,"virement","46 jours","FDM","N","ECOLAB","pièces maint.","1 pompe ELADOS + kit de raccordement",11.05,null,null,"4","F6320744416","2023-04-13",11.05]
["C2360035","Marolles","FG",14,3,null,"virement","45 jours","FDM","N","trenois","hygiène générale / personnel","Chaussure + electrode inox",117.82,null,117.82,"3","f1592602","2023-03-31",122.33,"2023-05-03"]
["C2315023","Teissières","LD",13,3,null,"Virement","30 jours","FDM","N","PLEIN CIEL","fournitures bureau","RAMETTE A4 Post-it enveloppes intercalaires lingettes main",321.14999999999998,null,321.14999999999998,null,"F267620","2023-03-31",321.14999999999998,"2023-05-03"]
["C2337014 MAWA","MAWA","FD",13,3,null,"Virement","45 jours","FDM","N","Marceul","pièces maint.","Cartouche de silicone pour trappes",null,null,null,null,"Annulée Avoir"]
["C2337015 MAWA","MAWA","FD",10,3,null,"Virement","45 jours","FDM","N","Electro tours","pièces maint.","Diver composants electriques",308.88,null,{"$f":"N124+O124","v":308.88},null,"F043258","2023-03-31",308.88,"2023-05-03"]
["C2337016 MAWA","MAWA","FD",14,3,"2023-03-15","Virement","45 jours","FDM","N","PROLIANS","pièces maint.","Plaque de plexi pour laveuse",398.08,null,398.08,null,"F9S37577","2023-03-31",398.08,"2023-05-03"]
["C2337024","Saint Hippo","FD",14,3,"2023-03-15","Virement","45 jours","FDM","N","PROLIANS","pièces maint.","Plaque de plexi pour porte laveuse",199.04,null,199.04,null,"F9S37577","2023-03-31",199.04,"2023-05-03"]
["C2337025","Saint Hippo","FD",15,3,null,"Virement","45 jours","FDM","N","Balnc bleu","/s traitance maint","Nacelle mat vertical pour pose des radiant en en  noel et 1er de l'an 2022 dans l'atelier",410.48,65.010000000000005,475.49,null,"FL209-0010064","2023-03-31",475.49,"2023-05-15"]
["C2337026","Saint Hippo","FD",15,3,null,"Virement","45 jours","FDM","N","Marceul","prdts maint.","Re appro visserie inox maintenance atelier",569.25,null,{"$f":"N128+O128","v":569.25},null,"F35844","2023-03-31",569.25,"2023-05-03"]
["C2337027","Saint Hippo","FD",16,3,null,"Virement","45 jours","FDM","N","rs","prdts maint.","Capteurs atelier",444.54,null,{"$f":"N129+O129","v":444.54},null,"F482522939","2023-03-16",444.54,"2023-05-03"]
["C2337028","Saint Hippo","FD",20,3,null,"Virement","45 jours","FDM","N","GARIC","/s traitance maint","Intervention alarme detecteur Labo",242,null,242,null,"FA066/03/2023","2023-04-05",242]
["C2360036","Marolles","SD",17,3,null,"Virement","45 jours","FDM","N","Biokar","prdts labo","Milieux de culture",343.1,0,343.1,"3","F10204479","2023-03-20",334.17]
["C2384023","Monteux","GC",20,3,null,"Virement","45 jours","FDM","N","Andrety","Sécurité / Environnement","gilets +matériel atelier",210.72,null,210.72,null,"FMO22655","2023-03-31",210.72,"2023-05-03"]
["C2360037","Marolles","FG",21,3,null,"Virement","45 jours","FDM","N","DEXIS","pièces maint.","barriere immaterielle banderoleuse",2263.58,null,2263.58,"3","FFR0323-1022400","2023-03-31",2132.46,"2023-05-03"]
["C2360037 B","Marolles","FG",21,3,null,"Virement","46 jours","FDM","N","DEXIS","pièces maint.","barriere immaterielle banderoleuse",22.04,null,22.04,"3"]
["C2360037 C","Marolles","FG",21,3,null,"Virement","47 jours","FDM","N","DEXIS","pièces maint.","barriere immaterielle banderoleuse",80,null,80,"4"]
["C2315024","Teissières","MV",21,3,null,"Virement","45 jours","FDM","N","Eurofins centre est (St Etienne)","analyses externes","As-Sb sortie binôme 1",11.44,8.32,{"$f":"N136+O136","v":19.759999999999998},null,"FEL-SD-23-001115","2023-03-31",19.760000000000002,"2023-05-03"]
["C2360038","Marolles","FG",21,3,null,"Virement","45 jours","FDM","N","WATTOHM","pièces maint.","turbine aspiration bardie ( turbine seule)",334,65,399,"3","F2306824","2023-03-29",399,"2023-05-03"]
["C2360039","Marolles","FG",21,3,null,"Virement","45 jours","FDM","N","LINDE","consommables de prod","Gaz c02",538.20000000000005,125.6,663.80000000000007,"3","F4231826736","2023-03-31",685.1,"2023-05-15"]
["C2337017 MAWA","MAWA","FD",14,3,null,"Virement","45 jours","FDM","N","PROLIANS","pièces maint.","Pofilé U inox",418.56,109,527.55999999999995,null,"F9S37577","2023-03-31",418.56,"2023-05-03"]
["C2337018 MAWA","MAWA","FD",14,3,null,"Virement","45 jours","FDM","N","Moulé","pièces maint.","Cartouche Colle polymere",10.5,null,{"$f":"N140+O140","v":10.5},null,"F23030175","2023-03-31",10.5,"2023-05-03"]
["C2360040","Marolles","JC",21,3,"2023-05-21","Virement","45 jours","FDM","O","Atemip","consommables de prod","Réalisation de 2 pavés vierges pour moule poignées de col 1 way non gravées ES",1400,0,1400,null,"FA34589","2023-03-28",700,"2023-04-15"]
["C2337028 MAWA","MAWA","FD",22,3,null,"Virement","45 jours","FDM","N","Moulé","prdts maint.","Tige filetée",22,null,22,null,"F23030175","2023-03-31",22,"2023-05-03"]
["C2337029","Saint Hippo","FD",22,3,null,"Virement","45 jours","FDM","N","Marceul","prdts maint.","Vis reparation Rack",32.659999999999997,null,{"$f":"N143+O143","v":32.659999999999997},null,"F35844","2023-03-31",32.659999999999997,"2023-05-03"]
["C2360041","Marolles","FG",22,3,null,"Virement","45 jours","FDM","N","RS","pièces maint.","nettoyant contact , attache rapide , connecteur y siement pour et200",178.1,null,178.1,"3","F482610820/F482611930","22 ET 23/03/2023",178.1,"2023-05-03"]
["C2337030","Saint Hippo","FD",22,3,null,"Virement","45 jours","FDM","N","Marceul","prdts maint.","Electrodes tungstene soudure TIG",62.4,null,62.4,null,"F35844","2023-03-31",62.4,"2023-05-03"]
["C2337019 MAWA","MAWA","FD",23,3,null,"Virement","45 jours","FDM","N","Prolians","pièces maint.","Tole larmée",1584.64,null,1584.64,null,"F9S49333","2023-04-30",1545.64]
["C2360042","Marolles","FG",23,3,null,"Virement","45 jours","FDM","N","RS","prdts maint.","reflecteur + capteur + bottes",188.57,null,188.57,"3","F482611931","2023-03-23",188.57,"2023-05-03"]
["C2337031","Saint Hippo","FD",24,3,"2023-03-24","Virement","45 jours","FDM","N","LM manutention","maint chariots élév","Chariot de remplacement car n° CE266232 verin hs",null,null,{"$f":"N148+O148","v":0},null,"FTO30017/L23","2023-03-31",795.9]
["C2384024","Monteux","LM",24,3,null,"Virement","30 jours","FDM","N","eurofins  ","analyses externes","rejets",91.78,null,91.78,null,"EL-SD-23001519","2023-04-26",91.78]
["C2337032","Saint Hippo","FD",24,3,null,"Virement","45 jours","FDM","N","MEC","pièces maint.","Chaine + pignons convoyeur bouchage",126.72,null,126.72]
["C2360043","Marolles","SD",24,3,null,"Virement","45 jours","FDM","N","Grosseron","prdts labo","Divers",404.34,0,404.34,"3","FV2023664088","2023-03-31",339.32]
["C2337033","Saint Hippo","FD",27,3,null,"Virement","45 jours","FDM","N","Marceul","pièces maint.","foret pour inox",81.06,null,{"$f":"N152+O152","v":81.06},null,"F35844","2023-03-31",81.06,"2023-05-03"]
["C2384025","Monteux","GC",27,3,null,"Virement","45 jours","FDM","N","Manutention Tricastine","location matériel","Location chariot élévateur",873,null,873,null,"F44516/44536","2023-04-27",1440.9]
["C2360044","Marolles","FG",28,3,null,"Virement","45 jours","FDM","N","RS","pièces maint.","serre cable + inter",52.6,null,52.6,"3","F482641752","2023-03-28",45.53,"2023-05-03"]
["C2337020 MAWA","MAWA","FD",15,3,null,"Virement","45 jours","FDM","N","Marceul","pièces maint.","Cartouche Colle polymere",14.18,null,{"$f":"N155+O155","v":14.18},"3","F35844","2023-03-31",14.18,"2023-05-03"]
["C2337021 MAWA","MAWA","FD",15,3,null,"Virement","45 jours","FDM","N","Marceul","pièces maint.","Cartouche Colle polymere",21.15,null,{"$f":"N156+O156","v":21.15},"3","F35844","2023-03-31",21.15,"2023-05-03"]
["C2315025","Teissières","MV",4,4,null,"Virement","45 jours","FDM","N","Eurofins centre est (St Etienne)","analyses externes","As-Sb Entrée Traitement + sortie binôme 1",22.88,16.64,39.519999999999996,null,"FEL-SD-23-001511","2023-04-26",39.520000000000003]
["C2360045","Marolles","FG",30,3,null,"Virement","45 jours","FDM","N","LINDE","consommables de prod","GAZ C02",538.20000000000005,125.6,663.80000000000007,"4","F4232117794","2023-04-30",685.1]
["C2315026","Teissières","RB",30,3,null,"Virement","45 jours","FDM","N","PROLIANS","Sécurité / Environnement","chaussures et savon",null,null,0,null,"FAS63994","2023-03-31",54.3]
["C2315027","Teissières","RB",30,3,null,"Virement","46 jours","FDM","N","Techmadome","pièces maint.","automate 3722 tsx",324,20,{"$f":"N160+O160","v":344},null,"F2304280","2023-04-07",344]
["C2337034","Saint Hippo","FD",3,4,null,"Virement","45 jours","FDM","N","Maintenance Industrielle","pièces maint.","Purgeur compresseur",478.45,null,{"$f":"N161+O161","v":478.45}]
["C2337035","Saint Hippo","FD",31,3,null,"Virement","45 jours","FDM","N","Endress et Hauser","pièces maint.","Remplacement debitmetre forage intervention du 12/2023",2435.63,null,2435.63,"4"]
["C2360046","Marolles","FG",31,3,null,"Virement","45 jours","FDM","N","MEC","pièces maint.","Complement barriere immateriel banderoleuse",1153.25,null,1153.25,"3","FFR0323-1022406","2023-03-31",1168.25,"2023-05-03"]
["C2360047","Marolles","FG",31,3,null,"Virement","45 jours","FDM","N","DEXIS","pièces maint.","Chaine convoyeur a rouleau entrée robot",1936.99,35,1971.99,"4"]
["C2315028","Teissières","RB",3,4,null,"Virement","45 jours","FDM","N","still","pièces maint.","bandages arrières sur jante RX 20-18",649,null,649]
["C2384026","Monteux","LM",3,4,null,"virement","45 jours","FDM","N","Biokar","prdts labo","Milieux de culture",335.42,null,335.42]
["C2384027","Monteux","LM",4,4,null,"Virement","45 jours","FDM","n","Grosseron","prdts labo","trompe à vide, bandelettes",405.02,null,405.02]
["C2384028","Monteux","LM",4,4,null,"Virement","45 jours","FDM","N","PLEIN CIEL","fournitures bureau","papier, marqueur",77.73,null,77.73,"4","FCA-025020","2023-04-29",77.73]
["C2315029","Teissières","MV",25,4,null,"Virement","45 jours","FDM","N","Eurofins centre est (St Etienne)","analyses externes","As-Sb  sortie binôme 1",11.44,8.32,19.759999999999998,"4"]
["C2315030","Teissières","RB",5,4,null,"Virement","45 jours","FDM","N","radiospares","pièces maint.","relais 110V / capteur / BP / boites dériv………;",459.5,null,{"$f":"N170+O170","v":459.5},null,"F482688548","2023-04-05",459.5]
["C2315031","Teissières","RB",5,4,null,"Virement","45 jours","FDM","N","Gervais","prdts maint.","Torche pour poste à souder TIG",188.29,null,{"$f":"N171+O171","v":188.29},null,"F230046475 (AVOIR A RECEVOIR)","2023-04-30",188.29]
["C2360048","Marolles","FG",5,4,null,"Virement","45 jours","FDM","N","TRENOIS","hygiène générale / personnel","Chaussure Mika, Theo,Clement,Bryan + abatant wc chauffeur+ papier wc + brosse + savon + clé",528.96,null,528.96,"4","F1654759","2023-04-30",533.47]
["C2315032","Teissières","RB",6,4,null,"Virement","45 jours","FDM","N","radiospares","pièces maint.","capteurs mecaniques palettiseur",477.75,null,477.75,null,"F482696809","2023-04-06",477.75]
["C2360049","Marolles","SD",6,4,null,"virement","45 jours","FDM","n","INTERACTIVE PAPETERIE","fournitures bureau","Divers",309.52,null,309.52,"4","F268282","2023-04-30",190.15]
["C2360050","Marolles","SD",6,4,null,"Virement","45 jours","FDM","n","INTERACTIVE PAPETERIE","fournitures bureau","Siège bureau + feuilles",190.15,null,190.15,"4","F268282","2023-04-30",309.52]
["C2315033","Teissières","RB",7,4,null,"Virement","45 jours","FDM","N","still","pièces maint.","bandages arrière RX20-20",492,null,{"$f":"N176+O176","v":492},"02/05/23"]
["C2337022 MAWA","MAWA","FD",7,4,null,"Virement","45 jours","FDM","N","Marceul","pièces maint.","Cartouche Colle polymere",14.18,null,14.18,"4","f36771","2023-04-30",14.18]
["C2315034","Teissières","RB",11,4,null,"Virement","45 jours","FDM","N","radiospares","pièces maint.","cables 1mm² x2 et tetes 3 positions et relais pour modification enrackeur ",226.68,null,226.68,"24/04/23","F482713759","2023-04-11",226.68]
["C2337036","Saint Hippo","FD",13,4,null,"Virement","45 jours","FDM","N","RS","pièces maint.","Verins smc tremie bouchons+ capteur niveau rejet +visserie",302.91000000000003,null,302.91000000000003,"4","F482725026/F482735452","13 ET 17/04/2023",217.72]
["C2360051","Marolles","FG",17,4,null,"Virement","45 jours","FDM","N","LINDE","consommables de prod","gaz c02",538.20000000000005,125.6,663.80000000000007,"4","F4232117794","2023-04-30",685.1]
["C2337037","Saint Hippo","FD",13,4,null,"Virement","45 jours","FDM","N","SEFI","prdts maint.","BOMBE de graisse",163.84,10.86,174.7,"4","F291285","2023-04-26",174.3]
["C2384029","Monteux","GC",12,4,null,"Virement","45 jours","FDM","N","Frans bonhomme","pièces maint.","Marériel pour évacuation eau ",152.68,null,152.68,null,"F23-279642","2023-04-15",152.68]
["C2384030","Monteux","GC",18,4,null,"Virement","45 jours","FDM","N","RS","pièces maint.","Balise cligniotante+peinture",116.43,null,116.43,null,"F482740218","2023-04-18",116.43]
["C2337038","Saint Hippo","CT",20,4,null,"Virement","45 jours","FDM","N","Biokar","prdts labo","geloses",334.45,null,334.45,"4","F10207515","2023-04-26",334.45]
["C2399005","Multi Sources","RC",24,4,null,"Virement","30 jours","FDM","N","MSI Conseils","fournitures bureau","Mise à jour antivirus de l'ensemble des postes informatiques",781.66,null,781.66]
["C2337039","Saint Hippo","FD",25,4,null,"Virement","45 jours","FDM","N","Electro tours","prdts maint.","Capteur et tete de capteurs sortie deboucheuse",38.229999999999997,null,{"$f":"N186+O186","v":38.229999999999997},"5"]
["C2315035","Teissières","RB",24,4,null,"Virement","45 jours","FDM","N","yesss","pièces maint.","cable",49.82,null,49.82,"25/04/23"]
["C2360052","Marolles","FG",26,4,null,"Virement","45 jours","FDM","N","LINDE","consommables de prod","GAZ C02",538.20000000000005,125.6,663.80000000000007]
["C2337040","Saint Hippo","CT",27,4,null,"Virement","45 jours","FDM","n","madeleine bijoux","prestation générale","Biscuits",78.09,null,78.09,"4","F3804145","2023-05-02",78.09]
["C2315036","Teissières","RB",1,5,null,"Virement","45 jours","FDM","N","Christeyns","consommables de prod",null,2373,null,2373]
["C2315037","Teissières","LD",27,4,null,"Virement","30 jours","FDM","N","Plein ciel","fournitures bureau","Agrafes, Ramette A4, Scotch, piles ",246.62,null,246.62,"05"]
["C2399006","Multi Sources","RB",3,5,null,"Virement","45 jours","FDM",null,"MYDIS","pièces maint.","3 paires de capteurs à ultrasons M18 + câbles",943.68,null,943.68]
["C2315038","Teissières","RB",3,5,"fin 05","Virement","45 jours","FDM","N","still","pièces maint.","2 éléments de batterie RX20",748,50,{"$f":"N193+O193","v":798}]
["C2315039","Teissières","RB",3,5,"fin 06","Virement","45 jours","FDM","N","Reals","pièces maint.","8 galets pour transpals EXU",167.44,22,{"$f":"N194+O194","v":189.44},"05/05"]
["C2315040","Teissières","MV",null,5,null,"Virement","45 jours","FDM","N","Eurofins centre est (St Etienne)","analyses externes","As-Sb  sortie binôme 1",11.44,8.32,19.759999999999998]
["C2337023 MAWA","MAWA","FD",null,4,null,"Virement","45 jours","FDM","N","Marceul","pièces maint.","Verrou servante car perte cle du 1er",20.9,null,20.9,"5","F36771",45036,20.9]
["C2315041","Teissières","RB",5,5,"fin 05","Virement","45 jours","FDM","N","ABC emballage","consommables de prod","feuillard manuel en PP et feuillard textile presse à balles",550.20000000000005,null,{"$f":"N197+O197","v":550.20000000000005}]
["C2337041","Saint Hippo","FD",5,5,"fin 05","Virement","45 jours","FDM","n","BMI moteurs","prdts maint.","Variaterus de vitesse stock pour enrackeur palettiseur et filmeuse",710,30,740,"5"]
[null,null,null,null,null,null,null,null,null,null,null,null,null,null,null,0]
[null,null,null,null,null,null,null,null,null,null,null,null,null,null,null,0]
[null,null,null,null,null,null,null,null,null,null,null,null,null,null,null,{"$f":"N201+O201","v":0}]
[]
[null,null,null,null,null,null,null,null,null,null,null,null,null,null,null,0]
[null,null,null,null,null,null,null,null,null,null,null,null,null,null,null,0]
[null,null,null,null,null,null,null,null,null,null,null,null,null,null,null,0]
[null,null,null,null,null,null,null,null,null,null,null,null,null,null,null,0]
[null,null,null,null,null,null,null,null,null,null,null,null,null,null,null,0]
[null,null,null,null,null,null,null,null,null,null,null,null,null,null,null,0]
[null,null,null,null,null,null,null,null,null,null,null,null,null,null,null,0]
[null,null,null,null,null,null,null,null,null,null,null,null,null,null,null,0]
[null,null,null,null,null,null,null,null,null,null,null,null,null,null,null,0]
[null,null,null,null,null,null,null,null,null,null,null,null,null,null,null,0]
[null,null,null,null,null,null,null,null,null,null,null,null,null,null,null,0]
[null,null,null,null,null,null,null,null,null,null,null,null,null,null,null,0]
[null,null,null,null,null,null,null,null,null,null,null,null,null,null,null,0]
[null,null,null,null,null,null,null,null,null,null,null,null,null,null,null,0]
[null,null,null,null,null,null,null,null,null,null,null,null,null,null,null,0]
[null,null,null,null,null,null,null,null,null,null,null,null,null,null,null,0]
[null,null,null,null,null,null,null,null,null,null,null,null,null,null,null,0]
[null,null,null,null,null,null,null,null,null,null,null,null,null,null,null,0]
[null,null,null,null,null,null,null,null,null,null,null,null,null,null,null,0]
[null,null,null,null,null,null,null,null,null,null,null,null,null,null,null,0]
[null,null,null,null,null,null,null,null,null,null,null,null,null,null,null,0]
[null,null,null,null,null,null,null,null,null,null,null,null,null,null,null,0]
[null,null,null,null,null,null,null,null,null,null,null,null,null,null,null,0]
[null,null,null,null,null,null,null,null,null,null,null,null,null,null,null,0]
[null,null,null,null,null,null,null,null,null,null,null,null,null,null,null,0]
[null,null,null,null,null,null,null,null,null,null,null,null,null,null,null,0]
[null,null,null,null,null,null,null,null,null,null,null,null,null,null,null,0]
[null,null,null,null,null,null,null,null,null,null,null,null,null,null,null,0]
[null,null,null,null,null,null,null,null,null,null,null,null,null,null,null,0]
[null,null,null,null,null,null,null,null,null,null,null,null,null,null,null,0]
[null,null,null,null,null,null,null,null,null,null,null,null,null,null,null,0]
[null,null,null,null,null,null,null,null,null,null,null,null,null,null,null,0]
[null,null,null,null,null,null,null,null,null,null,null,null,null,null,null,0]
[null,null,null,null,null,null,null,null,null,null,null,null,null,null,null,0]
[null,null,null,null,null,null,null,null,null,null,null,null,null,null,null,0]
[null,null,null,null,null,null,null,null,null,null,null,null,null,null,null,0]
[null,null,null,null,null,null,null,null,null,null,null,null,null,null,null,0]
[null,null,null,null,null,null,null,null,null,null,null,null,null,null,null,0]
[null,null,null,null,null,null,null,null,null,null,null,null,null,null,null,0]
[null,null,null,null,null,null,null,null,null,null,null,null,null,null,null,0]
[null,null,null,null,null,null,null,null,null,null,null,null,null,null,null,0]
[null,null,null,null,null,null,null,null,null,null,null,null,null,null,null,0]
[null,null,null,null,null,null,null,null,null,null,null,null,null,null,null,0,null,null,null,null,null,null,102.87]
[null,null,null,null,null,null,null,null,null,null,null,null,null,null,null,0]
[null,null,null,null,null,null,null,null,null,null,null,null,null,null,null,0]
[null,null,null,null,null,null,null,null,null,null,null,null,null,null,null,0]
[null,null,null,null,null,null,null,null,null,null,null,null,null,null,null,0]
[null,null,null,null,null,null,null,null,null,null,null,null,null,null,null,0,null,null,null,null,null,null,129.36000000000001]
[null,null,null,null,null,null,null,null,null,null,null,null,null,null,null,0]
[null,null,null,null,null,null,null,null,null,null,null,null,null,null,null,0]
[null,null,null,null,null,null,null,null,null,null,null,null,null,null,null,0,null,null,null,null,null,null,11.94]
[null,null,null,null,null,null,null,null,null,null,null,null,null,null,null,0]
[null,null,null,null,null,null,null,null,null,null,null,null,null,null,null,0]
[null,null,null,null,null,null,null,null,null,null,null,null,null,null,null,0]
[null,null,null,null,null,null,null,null,null,null,null,null,null,null,null,0]
[null,null,null,null,null,null,null,null,null,null,null,null,null,null,null,0]
[null,null,null,null,null,null,null,null,null,null,null,null,null,null,null,0]
[null,null,null,null,null,null,null,null,null,null,null,null,null,null,null,0]
[null,null,null,null,null,null,null,null,null,null,null,null,null,null,null,0]
[null,null,null,null,null,null,null,null,null,null,null,null,null,null,null,0,null,null,null,null,null,null,29.58]
[null,null,null,null,null,null,null,null,null,null,null,null,null,null,null,0]
[null,null,null,null,null,null,null,null,null,null,null,null,null,null,null,0]
[null,null,null,null,null,null,null,null,null,null,null,null,null,null,null,{"$f":"N265+O265","v":0},null,null,null,null,null,null,24.35]
[null,null,null,null,null,null,null,null,null,null,null,null,null,null,null,0]
[null,null,null,null,null,null,null,null,null,null,null,null,null,null,null,0]
[null,null,null,null,null,null,null,null,null,null,null,null,null,null,null,0]
[null,null,null,null,null,null,null,null,null,null,null,null,null,null,null,0,null,null,null,null,null,null,{"$f":"SUBTOTAL(9,W245:W265)","v":298.10000000000002}]
[null,null,null,null,null,null,null,null,null,null,null,null,null,null,null,0]
[null,null,null,null,null,null,null,null,null,null,null,null,null,null,null,0]
[null,null,null,null,null,null,null,null,null,null,null,null,null,null,null,0]
[null,null,null,null,null,null,null,null,null,null,null,null,null,null,null,0]
[null,null,null,null,null,null,null,null,null,null,null,null,null,null,null,0]
[null,null,null,null,null,null,null,null,null,null,null,null,null,null,null,0]
[null,null,null,null,null,null,null,null,null,null,null,null,null,null,null,0]
[null,null,null,null,null,null,null,null,null,null,null,null,null,null,null,0]
[null,null,null,null,null,null,null,null,null,null,null,null,null,null,null,0]
[null,null,null,null,null,null,null,null,null,null,null,null,null,null,null,0]
[null,null,null,null,null,null,null,null,null,null,null,null,null,null,null,0]
[null,null,null,null,null,null,null,null,null,null,null,null,null,null,null,0]
[null,null,null,null,null,null,null,null,null,null,null,null,null,null,null,0]
[null,null,null,null,null,null,null,null,null,null,null,null,null,null,null,0]
[null,null,null,null,null,null,null,null,null,null,null,null,null,null,null,0]
[null,null,null,null,null,null,null,null,null,null,null,null,null,null,null,0]
[null,null,null,null,null,null,null,null,null,null,null,null,null,null,null,0]
[null,null,null,null,null,null,null,null,null,null,null,null,null,null,null,0]
[null,null,null,null,null,null,null,null,null,null,null,null,null,null,null,0]
[null,null,null,null,null,null,null,null,null,null,null,null,null,null,null,0]
[null,null,null,null,null,null,null,null,null,null,null,null,null,null,null,0]
[null,null,null,null,null,null,null,null,null,null,null,null,null,null,null,0]
[null,null,null,null,null,null,null,null,null,null,null,null,null,null,null,0]
[null,null,null,null,null,null,null,null,null,null,null,null,null,null,null,0]
[null,null,null,null,null,null,null,null,null,null,null,null,null,null,null,0]
[null,null,null,null,null,null,null,null,null,null,null,null,null,null,null,0]
[null,null,null,null,null,null,null,null,null,null,null,null,null,null,null,0]
[null,null,null,null,null,null,null,null,null,null,null,null,null,null,null,0]
[null,null,null,null,null,null,null,null,null,null,null,null,null,null,null,0]
[null,null,null,null,null,null,null,null,null,null,null,null,null,null,null,0]
[null,null,null,null,null,null,null,null,null,null,null,null,null,null,null,0]
[null,null,null,null,null,null,null,null,null,null,null,null,null,null,null,0]
[null,null,null,null,null,null,null,null,null,null,null,null,null,null,null,0]
[null,null,null,null,null,null,null,null,null,null,null,null,null,null,null,0]
[null,null,null,null,null,null,null,null,null,null,null,null,null,null,null,0]
[null,null,null,null,null,null,null,null,null,null,null,null,null,null,null,0]
[null,null,null,null,null,null,null,null,null,null,null,null,null,null,null,0]
[null,null,null,null,null,null,null,null,null,null,null,null,null,null,null,0]
[null,null,null,null,null,null,null,null,null,null,null,null,null,null,null,0]
[null,null,null,null,null,null,null,null,null,null,null,null,null,null,null,0]
[null,null,null,null,null,null,null,null,null,null,null,null,null,null,null,0]
[null,null,null,null,null,null,null,null,null,null,null,null,null,null,null,0]
[null,null,null,null,null,null,null,null,null,null,null,null,null,null,null,0]
[null,null,null,null,null,null,null,null,null,null,null,null,null,null,null,0]
[null,null,null,null,null,null,null,null,null,null,null,null,null,null,null,0]
[null,null,null,null,null,null,null,null,null,null,null,null,null,null,null,0]
[null,null,null,null,null,null,null,null,null,null,null,null,null,null,null,0]
[null,null,null,null,null,null,null,null,null,null,null,null,null,null,null,0]
[null,null,null,null,null,null,null,null,null,null,null,null,null,null,null,0]
[null,null,null,null,null,null,null,null,null,null,null,null,null,null,null,0]
[null,null,null,null,null,null,null,null,null,null,null,null,null,null,null,0]
[null,null,null,null,null,null,null,null,null,null,null,null,null,null,null,0]
[null,null,null,null,null,null,null,null,null,null,null,null,null,null,null,0]
[null,null,null,null,null,null,null,null,null,null,null,null,null,null,null,0]
[null,null,null,null,null,null,null,null,null,null,null,null,null,null,null,0]
[null,null,null,null,null,null,null,null,null,null,null,null,null,null,null,0]
[null,null,null,null,null,null,null,null,null,null,null,null,null,null,null,0]
[null,null,null,null,null,null,null,null,null,null,null,null,null,null,null,0]
[null,null,null,null,null,null,null,null,null,null,null,null,null,null,null,0]
[null,null,null,null,null,null,null,null,null,null,null,null,null,null,null,{"$f":"N329+O329","v":0}]
[null,null,null,null,null,null,null,null,null,null,null,null,null,null,null,0]
[null,null,null,null,null,null,null,null,null,null,null,null,null,null,null,0]
[null,null,null,null,null,null,null,null,null,null,null,null,null,null,null,0]
[null,null,null,null,null,null,null,null,null,null,null,null,null,null,null,0]
[null,null,null,null,null,null,null,null,null,null,null,null,null,null,null,0]
[null,null,null,null,null,null,null,null,null,null,null,null,null,null,null,0]
[null,null,null,null,null,null,null,null,null,null,null,null,null,null,null,0]
[null,null,null,null,null,null,null,null,null,null,null,null,null,null,null,0]
[null,null,null,null,null,null,null,null,null,null,null,null,null,null,null,0]
[null,null,null,null,null,null,null,null,null,null,null,null,null,null,null,0]
[null,null,null,null,null,null,null,null,null,null,null,null,null,null,null,0]
[null,null,null,null,null,null,null,null,null,null,null,null,null,null,null,0]
[null,null,null,null,null,null,null,null,null,null,null,null,null,null,null,0]
[null,null,null,null,null,null,null,null,null,null,null,null,null,null,null,0]
[null,null,null,null,null,null,null,null,null,null,null,null,null,null,null,0]
[null,null,null,null,null,null,null,null,null,null,null,null,null,null,null,0]
[null,null,null,null,null,null,null,null,null,null,null,null,null,null,null,0]
[null,null,null,null,null,null,null,null,null,null,null,null,null,null,null,0]
[null,null,null,null,null,null,null,null,null,null,null,null,null,null,null,0]
[null,null,null,null,null,null,null,null,null,null,null,null,null,null,null,0]
[null,null,null,null,null,null,null,null,null,null,null,null,null,null,null,0]
[null,null,null,null,null,null,null,null,null,null,null,null,null,null,null,0]
[null,null,null,null,null,null,null,null,null,null,null,null,null,null,null,0]
[null,null,null,null,null,null,null,null,null,null,null,null,null,null,null,0]
[null,null,null,null,null,null,null,null,null,null,null,null,null,null,null,0]
[null,null,null,null,null,null,null,null,null,null,null,null,null,null,null,0]
[null,null,null,null,null,null,null,null,null,null,null,null,null,null,null,0]
[null,null,null,null,null,null,null,null,null,null,null,null,null,null,null,0]
[null,null,null,null,null,null,null,null,null,null,null,null,null,null,null,0]
[null,null,null,null,null,null,null,null,null,null,null,null,null,null,null,0]
[null,null,null,null,null,null,null,null,null,null,null,null,null,null,null,0]
[null,null,null,null,null,null,null,null,null,null,null,null,null,null,null,0]
[null,null,null,null,null,null,null,null,null,null,null,null,null,null,null,0]
[null,null,null,null,null,null,null,null,null,null,null,null,null,null,null,0]
[null,null,null,null,null,null,null,null,null,null,null,null,null,null,null,0]
[null,null,null,null,null,null,null,null,null,null,null,null,null,null,null,0]
[null,null,null,null,null,null,null,null,null,null,null,null,null,null,null,0]
[null,null,null,null,null,null,null,null,null,null,null,null,null,null,null,0]
[null,null,null,null,null,null,null,null,null,null,null,null,null,null,null,0]
[null,null,null,null,null,null,null,null,null,null,null,null,null,null,null,0]
[null,null,null,null,null,null,null,null,null,null,null,null,null,null,null,0]
[null,null,null,null,null,null,null,null,null,null,null,null,null,null,null,0]
[null,null,null,null,null,null,null,null,null,null,null,null,null,null,null,0]
[null,null,null,null,null,null,null,null,null,null,null,null,null,null,null,0]
[null,null,null,null,null,null,null,null,null,null,null,null,null,null,null,0]
[null,null,null,null,null,null,null,null,null,null,null,null,null,null,null,0]
[null,null,null,null,null,null,null,null,null,null,null,null,null,null,null,0]
[null,null,null,null,null,null,null,null,null,null,null,null,null,null,null,0]
[null,null,null,null,null,null,null,null,null,null,null,null,null,null,null,0]
[null,null,null,null,null,null,null,null,null,null,null,null,null,null,null,0]
[null,null,null,null,null,null,null,null,null,null,null,null,null,null,null,0]
[null,null,null,null,null,null,null,null,null,null,null,null,null,null,null,0]
[null,null,null,null,null,null,null,null,null,null,null,null,null,null,null,0]
[null,null,null,null,null,null,null,null,null,null,null,null,null,null,null,0]
[null,null,null,null,null,null,null,null,null,null,null,null,null,null,null,0]
[null,null,null,null,null,null,null,null,null,null,null,null,null,null,null,0]
[null,null,null,null,null,null,null,null,null,null,null,null,null,null,null,0]
[null,null,null,null,null,null,null,null,null,null,null,null,null,null,null,0]
[null,null,null,null,null,null,null,null,null,null,null,null,null,null,null,0]
[null,null,null,null,null,null,null,null,null,null,null,null,null,null,null,0]
[null,null,null,null,null,null,null,null,null,null,null,null,null,null,null,0]
[null,null,null,null,null,null,null,null,null,null,null,null,null,null,null,0]
[null,null,null,null,null,null,null,null,null,null,null,null,null,null,null,0]
[null,null,null,null,null,null,null,null,null,null,null,null,null,null,null,{"$f":"N393+O393","v":0}]
[null,null,null,null,null,null,null,null,null,null,null,null,null,null,null,{"$f":"N394+O394","v":0}]
[null,null,null,null,null,null,null,null,null,null,null,null,null,null,null,{"$f":"N395+O395","v":0}]
[null,null,null,null,null,null,null,null,null,null,null,null,null,null,null,0]
[null,null,null,null,null,null,null,null,null,null,null,null,null,null,null,0]
[null,null,null,null,null,null,null,null,null,null,null,null,null,null,null,0]
[null,null,null,null,null,null,null,null,null,null,null,null,null,null,null,0]
[null,null,null,null,null,null,null,null,null,null,null,null,null,null,null,0]
[null,null,null,null,null,null,null,null,null,null,null,null,null,null,null,0]
[null,null,null,null,null,null,null,null,null,null,null,null,null,null,null,0]
[null,null,null,null,null,null,null,null,null,null,null,null,null,null,null,0]
[null,null,null,null,null,null,null,null,null,null,null,null,null,null,null,0]
[null,null,null,null,null,null,null,null,null,null,null,null,null,null,null,0]
[null,null,null,null,null,null,null,null,null,null,null,null,null,null,null,0]
[null,null,null,null,null,null,null,null,null,null,null,null,null,null,null,0]
[null,null,null,null,null,null,null,null,null,null,null,null,null,null,null,0]
[null,null,null,null,null,null,null,null,null,null,null,null,null,null,null,0]
[null,null,null,null,null,null,null,null,null,null,null,null,null,null,null,0]
[null,null,null,null,null,null,null,null,null,null,null,null,null,null,null,0]
[null,null,null,null,null,null,null,null,null,null,null,null,null,null,null,0]
[null,null,null,null,null,null,null,null,null,null,null,null,null,null,null,0]
[null,null,null,null,null,null,null,null,null,null,null,null,null,null,null,0]
[null,null,null,null,null,null,null,null,null,null,null,null,null,null,null,0]
[null,null,null,null,null,null,null,null,null,null,null,null,null,null,null,0]
[null,null,null,null,null,null,null,null,null,null,null,null,null,null,null,0]
[null,null,null,null,null,null,null,null,null,null,null,null,null,null,null,0]
[null,null,null,null,null,null,null,null,null,null,null,null,null,null,null,0]
[null,null,null,null,null,null,null,null,null,null,null,null,null,null,null,0]
[null,null,null,null,null,null,null,null,null,null,null,null,null,null,null,{"$f":"N421+O421","v":0}]
[null,null,null,null,null,null,null,null,null,null,null,null,null,null,{"$f":"SUM(O4:O421)","v":2768.5299999999997},{"$f":"SUM(P4:P421)","v":106800.64999999998}]

{"sheet":"Listes de choix","index":1,"n_rows":27,"n_cols":11,"rows_kept":27,"cut":false,"hidden":false,"merged":[]}
["Usine","Mois","Mode de paiement","Délai paiement","Échéance","Service"]
["MAWA",1,"Autre","30 jours","Autre","/s traitance géné",61100000]
["Montarcher",2,"Chèque","45 jours","FDM","/s traitance maint",null,null,null,60260000,"Emballages consommables"]
["Monteux",3,"LCR-Traite","60 jours","FDM10","/s traitance qual",null,null,null,60261000,"Emballages Intermédiaires"]
["Multi Sources",4,"Prélèvement","Autre","FDM15","analyses externes",61700000]
["Saint Hippo",5,"Virement","Réception chantier","NET","commercial"]
["Siège",6,null,"Réception facture",null,"consommables de prod",60630000]
["Teissières",7,null,null,null,"emballages",602]
["Marolles",8,null,null,null,"emballages kits"]
[null,9,null,null,null,"énergies",60610000]
[null,10,null,null,null,"fournitures bureau",60640000]
[null,11,null,null,null,"hygiène générale / personnel",60639000]
[null,12,null,null,null,"ingrédients"]
[null,null,null,null,null,"location matériel",61350000]
[null,null,null,null,null,"maint chariots élév",61550000]
[null,null,null,null,null,"matériel souffleuse",60630010]
[null,null,null,null,null,"matériel labo",60636000]
[null,null,null,null,null,"matériel R&D"]
[null,null,null,null,null,"Matériel vente aux particuliers et distrib"]
[null,null,null,null,null,"pièces maint.",60630000]
[null,null,null,null,null,"prdts labo",60631100]
[null,null,null,null,null,"prdts maint."]
[null,null,null,null,null,"prdts nettoyage prod"]
[null,null,null,null,null,"prestation générale"]
[null,null,null,null,null,"Sécurité / Environnement",60639000]
[null,null,null,null,null,"Batiment"]
[null,null,null,null,null,"transport",60810000]